Cogmind - Beta 13 X2 @@@ ROGUE MODE // 2024.02.06 @ 03:01:33 // Winter2019/RPGLIKE Player: Minty Result: Destroyed by Y-64 Sentinel with KE Penetrator Performance ------------- Evolutions (6) 3000 Regions Visited (21) 4200 Robots Destroyed (220) 1100 Value Destroyed (10557) 10557 Prototype IDs (51) 1020 Alien Tech Used (0) 0 Bonus (8393) 8393 TOTAL SCORE: 28270 Bonus ------- Triggered High Security 500 High Alert Combat Kills 3028 Follower Combat Kills 2792 Entered Garrisons 800 Used RIF Installer 2500 Aligned with FarCom 300 Friendly Fire -1527 Cogmind --------- Core Integrity 0/1800 Matter 287/350 Energy 345/345 System Corruption 6% Temperature Cool (0) Movement Treading (160) Location -4/Extension Parts ------- > --- POWER (1) -------- Fusion Reactor > --- PROPULSION (4) --- Improved Treads Improved Treads Improved Treads (fused) Improved Treads > --- UTILITY (6) ------ Advanced Heat Sink Improved Signal Interpreter Relay Coupler [NC] (58) Relay Coupler [Swarmer] (13) Relay Coupler [Brawler] (43) > --- WEAPON (4) ------- Heavy Mass Driver Micro-nuke Launcher Improved Remote Datajack > --- INVENTORY (7) ---- Relay Coupler [Demolisher] (42) Relay Coupler [Proto] (18) Relay Coupler [Proto] (18) Relay Coupler [Proto] (18) Heavy Mass Driver Segregator Trap Peak State ------------ > --- POWER ------------ Fusion Reactor > --- PROPULSION ------- Nuclear Pulse Array Nuclear Pulse Array > --- UTILITY ---------- Improved Signal Interpreter Improved Terrain Scanner Improved Hacking Suite Relay Coupler [Swarmer] Relay Coupler [Grunt] Relay Coupler [Sentry] > --- WEAPON ----------- Force Rifle Magnetic Acceleration Cannon Light Antimatter Cannon Field Lobotomy Kit > --- INVENTORY -------- Relay Coupler [Brawler] Relay Coupler [Demolisher] Chronowheel Heavy Gatling Laser Micro-nuke Launcher Improved Remote Datajack [Rating: 85] Favorites ----------- Power Fusion Reactor Engine Light Ion Engine Power Core Light Nuclear Core Reactor Fusion Reactor Propulsion Nuclear Pulse Array Treads Improved Treads Leg Aluminum Leg Wheel Wheel Flight Unit Nuclear Pulse Array Utility Improved Signal Interpreter Device Improved Terrain Scanner Processor Improved Signal Interpreter Hackware Relay Coupler [Swarmer] Protection Improved Medium Armor Plating Weapon Arc Projector Energy Gun Arc Projector Ballistic Gun Hypervelocity Gauss Rifle Ballistic Cannon Magnetic Acceleration Cannon Launcher Micro-nuke Launcher Special Weapon Remote Datajack Slashing Weapon Plasma Sword Build | -11 -10 -10 -9 -9 -9 -8 -8 -8 -8 -8 -7 -6 -6 -6 -6 -5 -5 -5 -4 -4 -4 ------- Run | Yrd Mat Min Mat Min Exi Min Mat Gar Mat Gar Fac Fac Was Fac Gar Fac Was Fac Fac Gar Ext Slots Evolved 11 | 4 1 . 3 1 . . 1 . . . . 1 . . . . . . . . . Power . | . . . . . . . . . . . . . . . . . . . . . . Propulsion 3 | 1 . . 1 . . . 1 . . . . . . . . . . . . . . Utility 5 | 2 1 . . 1 . . . . . . . 1 . . . . . . . . . Weapon 3 | 1 . . 2 . . . . . . . . . . . . . . . . . . Parts Attached 178 | 5 9 5 17 8 2 1 18 9 . 15 1 10 9 10 7 1 1 3 14 23 10 Power 9 | . . . 3 . . . 1 . . 1 . 1 . . 2 . . 1 . . . Engine 3 | . . . 1 . . . . . . . . 1 . . 1 . . . . . . Core 4 | . . . 2 . . . 1 . . 1 . . . . . . . . . . . Reactor 2 | . . . . . . . . . . . . . . . 1 . . 1 . . . Propulsion 19 | 3 3 . 1 2 . . 1 1 . 2 . . . . . . 1 . . 2 3 Treads 5 | . . . . . . . . . . . . . . . . . . . . 2 3 Leg 2 | 2 . . . . . . . . . . . . . . . . . . . . . Wheel 1 | 1 . . . . . . . . . . . . . . . . . . . . . Hover . | . . . . . . . . . . . . . . . . . . . . . . Flight 11 | . 3 . 1 2 . . 1 1 . 2 . . . . . . 1 . . . . Utility 45 | . 4 2 2 2 1 . 7 2 . 4 1 2 1 2 1 . . 1 . 11 2 Device 17 | . 1 1 2 2 1 . 2 . . 1 1 . 1 . . . . . . 4 1 Storage . | . . . . . . . . . . . . . . . . . . . . . . Processor 8 | . 3 . . . . . 3 . . . . 1 . 1 . . . . . . . Hackware 18 | . . 1 . . . . 1 2 . 3 . 1 . . 1 . . 1 . 7 1 Protection 2 | . . . . . . . 1 . . . . . . 1 . . . . . . . Artifact . | . . . . . . . . . . . . . . . . . . . . . . Weapon 105 | 2 2 3 11 4 1 1 9 6 . 8 . 7 8 8 4 1 . 1 14 10 5 Energy Gun 35 | 1 1 3 9 3 . . 3 2 . . . 4 1 2 . . . . 4 2 . Energy Cannon . | . . . . . . . . . . . . . . . . . . . . . . Ballistic Gun 14 | 1 . . 1 . . 1 1 2 . . . 2 4 1 1 . . . . . . Ballistic Cannon 12 | . . . . . . . . . . . . . 1 3 1 . . . 2 4 1 Launcher 20 | . 1 . 1 1 . . 3 1 . 3 . . . 1 1 . . . 4 2 2 Special Weapon 23 | . . . . . 1 . 2 1 . 5 . 1 1 1 1 1 . 1 4 2 2 Impact Weapon . | . . . . . . . . . . . . . . . . . . . . . . Slashing Weapon 1 | . . . . . . . . . . . . . 1 . . . . . . . . Piercing Weapon . | . . . . . . . . . . . . . . . . . . . . . . Special Melee Weapon . | . . . . . . . . . . . . . . . . . . . . . . Unidentified Prototypes 10 | . . . 1 . . . 3 . . . . 1 2 1 . . . 1 1 . . Parts Lost 4 | . . . . . . . . . . . . . 3 . . . . . . 1 . Power 1 | . . . . . . . . . . . . . 1 . . . . . . . . Propulsion 1 | . . . . . . . . . . . . . . . . . . . . 1 . Utility 1 | . . . . . . . . . . . . . 1 . . . . . . . . Weapon 1 | . . . . . . . . . . . . . 1 . . . . . . . . Highest Loss Streak 3 | . . . . . . . . . . . . . 3 . . . . . . 1 . To Critical Strikes . | . . . . . . . . . . . . . . . . . . . . . . Average Slot Usage (%) 85 | . 74 94 96 97 88 83 95 95 100 86 78 80 73 78 79 80 84 86 85 83 88 Engine 1 | . 11 6 . . . . . . . . . 4 3 . . . 4 1 . . . Core 2 | . . . 8 7 7 7 7 7 7 7 7 2 . . . . . . . . . Reactor 2 | . . . . . . . . . . . . . . . . . . 5 6 6 6 Treads 3 | . . . . . . . . . . . . . . . . . . . . 2 22 Flight 14 | . 15 22 19 22 23 23 22 25 28 19 14 13 13 13 13 13 13 13 13 10 1 Device 8 | . 5 11 9 12 12 7 13 14 14 14 14 13 9 6 6 6 6 6 5 5 6 Processor 10 | . 8 29 19 15 10 7 8 7 7 7 7 6 13 15 18 13 13 8 6 6 6 Hackware 16 | . . 3 9 7 7 7 12 14 14 14 14 13 13 13 14 20 20 24 26 26 25 Energy Gun 12 | . 23 21 29 30 26 23 23 15 21 17 14 13 5 4 6 6 6 6 5 8 . Ballistic Gun 2 | . . . . . . 6 . 1 . . . 4 9 6 4 6 6 6 5 . . Ballistic Cannon 4 | . . . . . . . . . . . . . . 8 8 11 6 6 7 11 8 Launcher 1 | . . . . . . . 4 7 7 2 . . . 4 4 . . . . 1 3 Special Weapon 2 | . . . . . . . . 1 . 3 7 6 3 . . 1 6 6 5 1 3 Naked Turns . | . . . . . . . . . . . . . . . . . . . . . . Heaviest Build 53 | 7 8 10 18 20 22 23 29 31 31 43 41 42 41 38 30 25 25 36 41 53 53 Greatest Support 107 | 20 20 8 18 22 22 27 28 32 32 41 41 41 41 41 41 41 41 41 41 61 107 Greatest Overweight (x) 2 | . 1 1 . . . . 1 . . 1 2 2 . . 1 . . . . 1 . Average Overweight (x) . | . . . . . . . . . . . . . . . . . . . . . . Largest Inventory Capacity 7 | 1 1 3 3 3 3 3 3 4 4 5 6 6 6 6 6 6 6 7 7 7 7 Average Capacity 5 | 1 1 2 3 3 3 3 3 3 4 4 5 6 6 6 6 6 6 6 7 7 7 Most Carried 7 | 1 1 3 3 3 3 3 3 4 3 5 5 6 6 6 6 6 6 7 7 7 7 Average Carried 5 | . . 1 2 2 2 3 2 3 3 4 5 5 5 5 5 6 6 6 6 6 6 Final Capacity 7 | 1 1 3 3 3 3 3 3 4 4 5 6 6 6 6 6 6 6 7 7 7 7 Final Carried 7 | 1 1 3 3 3 3 3 3 3 3 5 5 6 6 6 6 6 6 7 5 7 7 Class Distribution -------------------- 42% | Hacker-Scout 16% | Botlord-Gunner 14% | Wizard-Scout 12% | Bothacker-Scout 4% | Hacker-Skirmisher 4% | Scavenger-Mutant 3% | Mutant Dominant Class ---------------- Mutant | -10/Materials Scavenger-Mutant | -10/Mines Hacker-Scout | -9/Materials Hacker-Scout | -9/Mines Hacker-Gunner | -9/Exiles Hacker-Scout | -8/Mines Hacker-Skirmisher | -8/Materials Hacker-Scout | -8/Garrison Hacker-Scout | -8/Materials Hacker-Scout | -8/Garrison Bothacker-Scout | -7/Factory Bothacker-Scout | -6/Factory Hacker-Scout | -6/Waste Hacker-Scout | -6/Factory Hacker-Scout | -6/Garrison Bothacker-Scout | -5/Factory Hacker-Scout | -5/Waste Hacker-Scout | -5/Factory Wizard-Scout | -4/Factory Wizard-Scout | -4/Garrison Botlord-Gunner | -4/Extension Resources | -11 -10 -10 -9 -9 -9 -8 -8 -8 -8 -8 -7 -6 -6 -6 -6 -5 -5 -5 -4 -4 -4 ----------- Run | Yrd Mat Min Mat Min Exi Min Mat Gar Mat Gar Fac Fac Was Fac Gar Fac Was Fac Fac Gar Ext Matter Collected 6457 | 200 180 50 203 91 . 88 206 59 . 630 85 265 220 208 764 . 264 34 891 1126 893 Remotely . | . . . . . . . . . . . . . . . . . . . . . . Salvage Created 6786 | . 330 311 882 274 . 148 260 47 . 387 137 237 296 234 808 30 . 49 710 1102 544 Parts 444 | . 37 26 67 25 . 19 22 20 . 26 12 21 4 15 28 5 . 8 32 58 19 Haulers Intercepted 4 | . 1 . 3 . . . . . . . . . . . . . . . . . . Recyclers Shooed 3 | . . . . . . . . . . . . 1 . 2 . . . . . . . Parts Field Recycled . | . . . . . . . . . . . . . . . . . . . . . . Retrieved Matter . | . . . . . . . . . . . . . . . . . . . . . . Parts Self-Destructed . | . . . . . . . . . . . . . . . . . . . . . . Prevented . | . . . . . . . . . . . . . . . . . . . . . . Kills | -11 -10 -10 -9 -9 -9 -8 -8 -8 -8 -8 -7 -6 -6 -6 -6 -5 -5 -5 -4 -4 -4 ------- Run | Yrd Mat Min Mat Min Exi Min Mat Gar Mat Gar Fac Fac Was Fac Gar Fac Was Fac Fac Gar Ext Combat Hostiles Destroyed 177 | . 13 9 25 11 . 9 10 10 . 8 . 4 1 7 17 1 1 1 11 27 12 Melee 1 | . . . . . . . . . . . . . . . . . . . . . 1 Guns 104 | . 10 9 24 9 . 9 5 1 . 6 . 3 1 2 10 1 1 . 6 7 . Cannons 32 | . . . . . . . . . . . . . . 2 3 . . 1 2 14 10 AOE 38 | . 3 . 1 2 . . 5 9 . 1 . . . 3 4 . . . 3 6 1 Classes Destroyed 22 | . 5 1 2 1 . . 3 . . 1 1 1 1 1 2 . . . 1 2 . Worker 5 | . . . . . . . 1 . . . . 1 . 1 . . . 1 1 . . Builder 7 | . 1 . 1 . . 1 1 . . . . . . 2 . . . . . . 1 Tunneler 8 | . . 3 . 2 . . 1 . . . 1 . . . . 1 . . . . . Hauler 4 | . 1 . 3 . . . . . . . . . . . . . . . . . . Recycler 2 | . . . . 2 . . . . . . . . . . . . . . . . . Mechanic 1 | . . . 1 . . . . . . . . . . . . . . . . . . Operator 1 | . . . . . . . 1 . . . . . . . . . . . . . . Watcher 7 | . 1 . 1 . . . . 1 . . 1 . . 1 . . . 1 1 . . Swarmer 54 | . 6 3 4 11 . 9 3 8 . 4 . . . . . . . . 2 3 1 Cutter 4 | . . . . . . . . . . . . . . . . . . . . 4 . Saboteur 3 | . . . . . . . . . . . . . . . 2 . . . . . 1 Grunt 70 | . 7 6 15 . . . 6 . . . . 1 . 4 8 . . 1 7 11 4 Brawler 1 | . . . . . . . . . . . . . . . . . . . . 1 . Duelist 6 | . . . . . . . . . . 1 . . . 1 . . . . . 1 3 Sentry 22 | . . . 6 . . . . . . 4 . 2 . 1 5 . . . 2 . 2 Specialist 3 | . . . . . . . . . . . 1 . . . . . . . . 2 . Hunter 6 | . . . . . . . 1 2 . 1 . . . . . . . . 2 . . Programmer 7 | . . . . . . . . . . . . . . 1 . . . . 1 4 1 Heavy 1 | . . . . . . . . . . . . 1 . . . . . . . . . Behemoth 4 | . . . . . . . . . . . . . . . 2 1 . . . 1 . Compactor 2 | . . . . . . . . . . . . . 1 . . . 1 . . . . Butcher 1 | . . . . . . . . . . . . . . . . . . . . . 1 Martyr 1 | . . . . . . . . . . . . . . . . . . . 1 . . Best Kill Streak 9 | . 9 5 8 5 . 7 5 9 . 3 2 2 1 6 5 2 1 2 4 6 4 Combat Bots Only 9 | . 7 5 7 4 . 7 4 9 . 3 . 1 1 4 5 1 1 1 3 6 4 Max Kills in Single Turn 4 | . 1 2 2 4 . 2 3 3 . 2 1 1 1 2 2 1 1 1 2 4 3 Gunslinging 1 | . . 1 1 1 . 1 . . . 1 . . . . . . . . . . . Exploded 4 | . 1 . 1 2 . . 2 3 . 1 . . . 1 2 . . . 1 4 1 Melee 1 | . . . . . . . . . . . . . . . . . . . . . 1 Uniques/NPCs Destroyed . | . . . . . . . . . . . . . . . . . . . . . . Combat | -11 -10 -10 -9 -9 -9 -8 -8 -8 -8 -8 -7 -6 -6 -6 -6 -5 -5 -5 -4 -4 -4 -------- Run | Yrd Mat Min Mat Min Exi Min Mat Gar Mat Gar Fac Fac Was Fac Gar Fac Was Fac Fac Gar Ext Hostile Shots Fired 1010 | . 60 45 92 18 . 18 34 8 . 71 6 91 4 20 126 18 . 6 174 131 88 Missed 435 | . 21 22 35 10 . 8 14 4 . 34 3 44 . 10 66 8 . 4 72 60 20 Damage Taken 10523 | . 409 256 626 71 . 73 336 57 . 642 34 735 550 319 810 216 59 59 2068 1457 1746 Core 8476 | . 329 215 520 54 . 55 272 43 . 508 26 599 458 199 673 173 42 49 1646 1196 1419 Absorbed by Shields . | . . . . . . . . . . . . . . . . . . . . . . Redirected to Core 6803 | . 251 132 337 54 . 49 195 43 . 440 26 488 330 199 475 155 42 35 1493 893 1166 Ignored by Resistances 910 | . . . 23 9 . 10 20 4 . 44 3 62 13 25 68 30 6 9 234 162 188 Regen/Repaired (Parts) 259 | . . . . . . . . . . . . . . 172 . . . 87 . . . Core Remaining (%) 95 | 100 . 100 . . . 99 . . . 83 100 . . . 88 . . 95 . . . Volleys Fired 635 | . 35 34 48 14 . 11 22 17 . 74 24 54 12 16 43 14 3 21 71 56 66 Largest 4 | . 2 2 4 4 . 4 4 4 . 4 2 3 3 4 4 4 3 3 4 4 2 Hottest 303 | . 100 121 252 269 . 209 250 210 . 210 110 175 121 195 242 228 168 168 248 303 150 Shots Fired 1450 | . 70 68 141 56 . 30 78 32 . 149 31 120 31 48 108 35 9 35 171 161 77 Gun 995 | . 66 68 138 55 . 30 72 23 . 113 14 109 31 20 52 14 6 14 87 83 . Cannon 256 | . . . . . . . . . . . . . . 23 40 14 3 7 57 69 43 Launcher 58 | . 4 . 3 1 . . 6 9 . 10 . . . 5 7 . . . 6 4 3 Special 141 | . . . . . . . . . . 26 17 11 . . 9 7 . 14 21 5 31 Kinetic 409 | . . . . . . 9 1 . . . . 28 20 37 61 21 6 14 100 69 43 Thermal 646 | . 66 68 138 55 . 21 65 9 . 23 . 15 5 6 31 7 3 7 44 83 . Explosive 57 | . 4 . 3 1 . . 6 9 . 10 . . . 5 7 . . . 5 4 3 Electromagnetic 197 | . . . . . . . 6 14 . 90 14 66 6 . . . . . 1 . . Robot Hit Streak 25 | . 8 8 9 9 . 2 11 3 . 15 17 9 15 7 10 6 4 8 15 16 25 Robot Miss Streak 7 | . 4 2 2 2 . 2 2 6 . 3 3 3 2 7 4 1 1 5 3 3 3 Penetration Max 1 | . . . . . . . . . . . . 1 1 . 1 . . . 1 . 1 Secondary Targets 24 | . 2 4 6 4 . 4 1 . . 1 . . 1 . . . . . 1 . . Max Gunslinging Chain 2 | . 1 1 2 1 . 1 1 . . 1 . . 1 . . . . . 1 . . Shots Hit Robots 855 | . 47 41 80 29 . 12 42 12 . 73 20 67 26 25 60 20 6 22 113 98 62 Core Hits 391 | . 23 20 39 15 . 10 25 14 . 26 6 25 3 21 34 11 2 5 46 50 16 Critical Kills 8 | . . . . . . . . . . . . 2 1 2 2 . . . . 1 . Critical Parts Destroyed 13 | . . . . . . . . . . . . 6 2 . 2 . . . 2 1 . Critical Strikes 51 | . 4 1 2 2 . 1 . . . 1 . 10 8 2 5 1 . . 4 6 4 Burn 12 | . 4 1 2 2 . 1 . . . 1 . . . . . . . . . 1 . Destroy 29 | . . . . . . . . . . . . 10 8 2 4 . . . 2 3 . Blast 10 | . . . . . . . . . . . . . . . 1 1 . . 2 2 4 Melee Attacks . | . . . . . . . . . . . . . . . . . . . . . . Impact . | . . . . . . . . . . . . . . . . . . . . . . Slashing . | . . . . . . . . . . . . . . . . . . . . . . Piercing . | . . . . . . . . . . . . . . . . . . . . . . Sneak Attacks . | . . . . . . . . . . . . . . . . . . . . . . Combat Hostiles . | . . . . . . . . . . . . . . . . . . . . . . Follow-up Attacks . | . . . . . . . . . . . . . . . . . . . . . . Damage Inflicted 24226 | . 839 564 1478 627 . 200 1426 811 . 1016 110 691 242 1269 2356 547 194 281 4085 3933 3557 Guns 10360 | . 611 564 1397 504 . 200 701 190 . 701 110 691 242 106 511 212 125 180 1655 1660 . Cannons 6870 | . . . . . . . . . . . . . . 328 698 259 69 101 1284 1430 2701 Explosions 6986 | . 228 . 81 123 . . 724 621 . 315 . . . 835 1147 76 . . 1146 843 847 Melee . | . . . . . . . . . . . . . . . . . . . . . . Ramming 10 | . . . . . . . 1 . . . . . . . . . . . . . 9 Kinetic 8438 | . . . . . . 27 8 . . . . 190 175 368 776 335 119 208 2101 1430 2701 Thermal 8463 | . 611 564 1397 504 . 173 677 167 . 323 . 106 61 546 433 136 75 73 957 1660 . Explosive 5981 | . 228 . 81 123 . . 724 517 . 202 . . . 355 1147 . . . 914 843 847 Electromagnetic 1334 | . . . . . . . 16 127 . 491 110 395 6 . . 76 . . 113 . . Impact . | . . . . . . . . . . . . . . . . . . . . . . Slashing . | . . . . . . . . . . . . . . . . . . . . . . Piercing . | . . . . . . . . . . . . . . . . . . . . . . Highest Corruption 6 | . . . . . . . . . . . . . . . . 1 1 1 4 6 6 Average Corruption 4 | . . . . . . . . . . . . . . . . 1 1 1 2 5 6 Corruption Purged . | . . . . . . . . . . . . . . . . . . . . . . Corruption Blocked . | . . . . . . . . . . . . . . . . . . . . . . Effects 54 | . . . . . . . . . . . . . . . . . 3 1 1 27 22 Message Errors 7 | . . . . . . . . . . . . . . . . . 1 . . 5 1 Matter Fused 19 | . . . . . . . . . . . . . . . . . . . . 9 10 Heat Flow Errors 7 | . . . . . . . . . . . . . . . . . . . . 2 5 Energy Discharges 5 | . . . . . . . . . . . . . . . . . . . . 3 2 Parts Rejected 1 | . . . . . . . . . . . . . . . . . 1 . . . . Parts Fused 1 | . . . . . . . . . . . . . . . . . . . . . 1 Data Loss (minor) 7 | . . . . . . . . . . . . . . . . . 1 . . 5 1 Data Loss (major) 4 | . . . . . . . . . . . . . . . . . . 1 . 2 1 Misfires 1 | . . . . . . . . . . . . . . . . . . . . . 1 Alerts 1 | . . . . . . . . . . . . . . . . . . . 1 . . Weapon Failures 1 | . . . . . . . . . . . . . . . . . . . . 1 . Overload Shots . | . . . . . . . . . . . . . . . . . . . . . . Overflow Damage 651 | . . . . . . . 7 41 . . . . . 126 59 . . . 67 49 302 Projectiles 371 | . . . . . . . . . . . . . . 20 . . . . 32 49 270 Explosions 280 | . . . . . . . 7 41 . . . . . 106 59 . . . 35 . 32 Melee . | . . . . . . . . . . . . . . . . . . . . . . Knockbacks 23 | . . . . . . . . . . . . . . 1 2 . . . 8 5 7 Impact . | . . . . . . . . . . . . . . . . . . . . . . Kinetic 22 | . . . . . . . . . . . . . . 1 2 . . . 8 5 6 Secondary 1 | . . . . . . . . . . . . . . . . . . . . . 1 Self-Inflicted Damage 887 | . 35 . 18 . . . 81 26 . 111 . . . 245 140 . . . 38 86 107 Shots 21 | . 1 . 1 . . . 2 1 . 3 . . . 5 3 . . . 1 2 2 Rammed 2 | . . . . . . . 1 . . . . . . . . . . . . . 1 Targets Rammed 3 | . . . . . . . 1 . . . . . . . . . . . . . 2 Kicked . | . . . . . . . . . . . . . . . . . . . . . . Crushed 1 | . . . . . . . . . . . . . . . . . . . . . 1 Highest Temperature 540 | . 174 16 358 336 . 141 428 44 . 72 . 108 . 60 165 266 11 46 354 540 202 Average Temperature 81 | . 58 7 102 108 . 61 153 32 . 27 . 33 . 19 37 122 8 20 70 116 80 Received Heat Transfer 2358 | . 132 117 273 9 . . 117 . . 156 . 150 9 27 270 36 27 . 168 553 314 Effects 7 | . . . . . . . 2 . . . . . . . . . . . 1 4 . Shutdowns 2 | . . . . . . . . . . . . . . . . . . . 1 1 . Interference 3 | . . . . . . . 1 . . . . . . . . . . . . 2 . Matter Decay 1 | . . . . . . . . . . . . . . . . . . . . 1 . Damage (minor) 1 | . . . . . . . 1 . . . . . . . . . . . . . . Siege Activations . | . . . . . . . . . . . . . . . . . . . . . . Robots Corrupted 2 | . . . . . . . . . . 1 . 1 . . . . . . . . . Combat Hostiles 2 | . . . . . . . . . . 1 . 1 . . . . . . . . . Parts Fried 3 | . . . . . . . . . . 1 . 2 . . . . . . . . . Impact Corruptions 1 | . . . . . . . . . . . . . . . . . . . . . 1 Robots Melted . | . . . . . . . . . . . . . . . . . . . . . . Combat Hostiles . | . . . . . . . . . . . . . . . . . . . . . . Parts Melted 26 | . 5 3 6 2 . . 3 . . 1 . . . . 1 . . . . 5 . Heat Transferred 16691 | . 2109 1508 3182 1248 . 444 1369 261 . 494 . 148 185 535 629 185 111 111 1394 2778 . Parts Sabotaged . | . . . . . . . . . . . . . . . . . . . . . . Parts Stolen . | . . . . . . . . . . . . . . . . . . . . . . Parts Stripped . | . . . . . . . . . . . . . . . . . . . . . . Power Chain Reactions 2 | . . . . . . . . 1 . 1 . . . . . . . . . . . Missiles Intercepted . | . . . . . . . . . . . . . . . . . . . . . . Alert | -11 -10 -10 -9 -9 -9 -8 -8 -8 -8 -8 -7 -6 -6 -6 -6 -5 -5 -5 -4 -4 -4 ------- Run | Yrd Mat Min Mat Min Exi Min Mat Gar Mat Gar Fac Fac Was Fac Gar Fac Was Fac Fac Gar Ext Peak Influence 2192 | . 410 416 1094 695 . 205 511 705 343 1233 678 404 98 927 1103 849 405 406 1796 2192 1170 Initial 1164 | . . 159 161 368 . . 79 332 343 222 646 184 81 11 494 578 297 283 179 1164 1150 Average 715 | . 186 320 644 609 . 136 194 571 343 742 451 227 51 639 841 694 376 315 1142 1704 758 Maximum Alert Level 5 | . 2 2 3 2 . 1 2 3 1 4 2 2 . 3 4 3 2 2 5 5 4 Low Security (%) 15 | 100 58 13 9 . . 82 75 . . . . 41 100 11 . . . 11 1 . . Level 1 19 | . 35 72 19 2 . 17 22 20 100 17 43 56 . 7 . . 52 76 8 . . Level 2 25 | . 5 14 24 97 . . 2 66 . 29 56 2 . 8 35 54 47 12 7 . 60 Level 3 19 | . . . 46 . . . . 12 . 32 . . . 72 41 45 . . 28 . 24 Level 4 12 | . . . . . . . . . . 20 . . . . 23 . . . 30 45 14 Level 5 7 | . . . . . . . . . . . . . . . . . . . 12 54 . High Security . | . . . . . . . . . . . . . . . . . . . 10 . . Max Security . | . . . . . . . . . . . . . . . . . . . . . . Squads Dispatched 44 | . 4 1 8 . . . 3 . . . 2 2 . 5 . 1 . 2 14 . 2 Investigation 23 | . 4 1 6 . . . 1 . . . 2 . . 2 . 1 . 2 4 . . Extermination 1 | . . . . . . . . . . . . . . . . . . . 1 . . Reinforcement 12 | . . . 2 . . . 1 . . . . 2 . 3 . . . . 4 . . Assault 4 | . . . . . . . . . . . . . . . . . . . 2 . 2 Garrison 4 | . . . . . . . 1 . . . . . . . . . . . 3 . . Intercept . | . . . . . . . . . . . . . . . . . . . . . . Searches Triggered . | . . . . . . . . . . . . . . . . . . . . . . Construction Impeded 3 | . . . . . . . . . . . . . . 2 . . . . 1 . . Haulers Reinforced 1 | . . . . . . . . . . . . 1 . . . . . . . . . Active Scanning Responses . | . . . . . . . . . . . . . . . . . . . . . . Cargo Convoy Interrupts . | . . . . . . . . . . . . . . . . . . . . . . Stealth | -11 -10 -10 -9 -9 -9 -8 -8 -8 -8 -8 -7 -6 -6 -6 -6 -5 -5 -5 -4 -4 -4 --------- Run | Yrd Mat Min Mat Min Exi Min Mat Gar Mat Gar Fac Fac Was Fac Gar Fac Was Fac Fac Gar Ext Distress Signals 9 | . 1 . 3 . . . . . . . 1 . . 1 . . . 2 1 . . Communications Jammed . | . . . . . . . . . . . . . . . . . . . . . . Distress Signals . | . . . . . . . . . . . . . . . . . . . . . . Times Spotted 336 | . 18 12 33 13 . 9 16 8 . 32 5 11 6 10 25 4 6 16 51 29 32 Peak Tracking Total 11 | . 4 3 9 4 . 4 4 4 . 8 2 4 6 2 7 4 2 5 9 11 7 Tactical Retreats 11 | . . . 2 1 . . . . . . . 2 . . . . . . 2 2 2 Traps | -11 -10 -10 -9 -9 -9 -8 -8 -8 -8 -8 -7 -6 -6 -6 -6 -5 -5 -5 -4 -4 -4 ------- Run | Yrd Mat Min Mat Min Exi Min Mat Gar Mat Gar Fac Fac Was Fac Gar Fac Was Fac Fac Gar Ext Traps Triggered 8 | . 1 . . . . . 1 . . 1 . 2 . . . 1 . . . 1 1 Indirectly . | . . . . . . . . . . . . . . . . . . . . . . Trap Hack Attempts . | . . . . . . . . . . . . . . . . . . . . . . Triggered . | . . . . . . . . . . . . . . . . . . . . . . Disarmed 8 | . . . . . . . . . . . . . . . . . . . 8 . . Reprogrammed 19 | . . . 7 . . . . . . . 6 . . . . . . 6 . . . Reused 7 | . . . 2 . . . . . . . . . . . . . . 1 . 4 . Traps Extracted . | . . . . . . . . . . . . . . . . . . . . . . Installed 5 | . . . . . . . . . . . . . . . . . . . . 5 . Triggered 7 | . . . 2 . . . . . . . . . . . . . . 1 . 4 . Most Traps Carried 3 | . . . . . . . . . . . . . . . . . . . . 3 1 Machines | -11 -10 -10 -9 -9 -9 -8 -8 -8 -8 -8 -7 -6 -6 -6 -6 -5 -5 -5 -4 -4 -4 ---------- Run | Yrd Mat Min Mat Min Exi Min Mat Gar Mat Gar Fac Fac Was Fac Gar Fac Was Fac Fac Gar Ext Machines Disabled 82 | . 2 1 4 2 . . 5 1 . 7 . 2 . 13 4 14 . . 16 10 1 Max in Single Turn 6 | . 1 1 1 1 . . 2 1 . 1 . 1 . 4 2 6 . . 5 2 1 Garrison Access 1 | . . . . . . . . . . . . . . . . . . . 1 . . Garrison Relay 10 | . . . . . . . . 1 . 4 . . . . 1 . . . . 4 . Phase Generator 2 | . . . . . . . . . . 1 . . . . . . . . . 1 . Machines Repaired . | . . . . . . . . . . . . . . . . . . . . . . Machines Dismantled . | . . . . . . . . . . . . . . . . . . . . . . Machines Sabotaged . | . . . . . . . . . . . . . . . . . . . . . . Overloaded Fab Kills . | . . . . . . . . . . . . . . . . . . . . . . Hacking | -11 -10 -10 -9 -9 -9 -8 -8 -8 -8 -8 -7 -6 -6 -6 -6 -5 -5 -5 -4 -4 -4 --------- Run | Yrd Mat Min Mat Min Exi Min Mat Gar Mat Gar Fac Fac Was Fac Gar Fac Was Fac Fac Gar Ext Machines Accessed 44 | . 3 1 4 1 2 . 2 1 1 4 3 1 . 6 1 1 . 3 7 1 2 Terminals 27 | . 3 . 3 . . . 1 1 . 4 3 1 . 3 1 . . 2 2 1 2 Fabricators 5 | . . . . . . . . . . . . . . 1 . 1 . . 3 . . Repair Stations 2 | . . . . . . . . . . . . . . 1 . . . 1 . . . Recycling Units . | . . . . . . . . . . . . . . . . . . . . . . Scanalyzers 1 | . . . 1 . . . . . . . . . . . . . . . . . . Garrison Access 5 | . . . . . . . 1 . 1 . . . . 1 . . . . 2 . . Total Hacks 171 | . 8 1 24 1 2 . 8 3 1 16 14 4 . 16 2 4 . 18 27 8 14 Successful 110 | . 7 1 20 1 2 . 5 2 1 3 10 3 . 7 1 1 . 11 23 4 8 Failed 60 | . . . 4 . . . 3 1 . 13 4 1 . 9 1 3 . 7 4 4 6 Catastrophic 8 | . . . . . . . . . . 4 . . . 2 . 1 . . . 1 . Database Lockouts 1 | . 1 . . . . . . . . . . . . . . . . . . . . Manual 105 | . 8 . 12 . 1 . 7 2 . 6 4 4 . 8 . 3 . 11 19 7 13 Terminals 130 | . 8 . 19 . . . 7 3 . 16 14 4 . 10 2 . . 15 10 8 14 Fabricators 21 | . . . . . . . . . . . . . . 2 . 4 . . 15 . . Repair Stations 6 | . . . . . . . . . . . . . . 3 . . . 3 . . . Recycling Units . | . . . . . . . . . . . . . . . . . . . . . . Scanalyzers 5 | . . . 5 . . . . . . . . . . . . . . . . . . Garrison Access 5 | . . . . . . . 1 . 1 . . . . 1 . . . . 2 . . Terminal Hacks 66 | . 2 1 14 1 2 . 2 2 . 3 9 2 . 2 1 . . 8 6 4 7 Record 2 | . . . 1 . 1 . . . . . . . . . . . . . . . . Prototype ID Bank 9 | . 1 . 2 . . . 1 . . . 2 . . . . . . 1 2 . . Open Door 4 | . . 1 . 1 . . . . . . . . . . 1 . . . . . 1 Level Access Points 1 | . . . . . . . . . . . . . . 1 . . . . . . . Branch Access Points 2 | . . . 1 . . . . . . . . . . . . . . . 1 . . Emergency Access Points 3 | . . . 1 . . . . . . 1 . . . . . . . 1 . . . Machine Index 2 | . . . . . . . . . . . 1 . . . . . . . . . 1 Terminal Index 1 | . . . . . . . . . . . 1 . . . . . . . . . . Garrison Index 2 | . . . . . . . 1 . . . . . . . . . . 1 . . . Alert Level 2 | . . . 2 . . . . . . . . . . . . . . . . . . Unreport Threat 11 | . . . 1 . . . . . . . 2 . . . . . . 3 . 1 4 Locate Traps 5 | . . . 1 . . . . . . . 1 . . 1 . . . 1 1 . . Disarm Traps 2 | . . . . . . . . . . . . . . . . . . . 2 . . Reprogram Traps 4 | . . . 2 . . . . . . . 1 . . . . . . 1 . . . Dispatch Records 3 | . . . 1 . . . . . . . 1 1 . . . . . . . . . Recall Investigation 1 | . . . 1 . . . . . . . . . . . . . . . . . . Recall Reinforcements 1 | . . . . . . . . . . . . 1 . . . . . . . . . Zone Layout 2 | . 1 . 1 . . . . . . . . . . . . . . . . . . Garrison Registry 3 | . . . . . . . . 1 . 1 . . . . . . . . . 1 . Patrol Navigation 3 | . . . . . . . . 1 . 1 . . . . . . . . . 1 . Security Stations 2 | . . . . . . . . . . . . . . . . . . . . 1 1 Derelict Proto ID Bank 1 | . . . . . 1 . . . . . . . . . . . . . . . . Fabricator Hacks 6 | . . . . . . . . . . . . . . . . 1 . . 5 . . Network Status 2 | . . . . . . . . . . . . . . . . . . . 2 . . Load Schematic 1 | . . . . . . . . . . . . . . . . . . . 1 . . Build 3 | . . . . . . . . . . . . . . . . 1 . . 2 . . Repair Station Hacks 4 | . . . . . . . . . . . . . . 2 . . . 2 . . . Scan Component 2 | . . . . . . . . . . . . . . 1 . . . 1 . . . Repair 2 | . . . . . . . . . . . . . . 1 . . . 1 . . . Recycling Unit Hacks . | . . . . . . . . . . . . . . . . . . . . . . Scanalyzer 4 | . . . 4 . . . . . . . . . . . . . . . . . . Insert Component 2 | . . . 2 . . . . . . . . . . . . . . . . . . Analyze 2 | . . . 2 . . . . . . . . . . . . . . . . . . Garrison Access Hacks 4 | . . . . . . . 1 . 1 . . . . 1 . . . . 1 . . Unlock Access 4 | . . . . . . . 1 . 1 . . . . 1 . . . . 1 . . Unauthorized Hacks 26 | . 5 . 2 . . . 2 . . . 1 1 . 2 . . . 1 11 . 1 Terminals 14 | . 5 . 1 . . . 2 . . . 1 1 . 1 . . . 1 1 . 1 Botnet 10 | . 2 . 1 . . . 1 . . . 1 1 . 1 . . . 1 1 . 1 Sabotage 3 | . 2 . . . . . 1 . . . . . . . . . . . . . . Search 1 | . 1 . . . . . . . . . . . . . . . . . . . . Fabricators 10 | . . . . . . . . . . . . . . 1 . . . . 9 . . Report 1 | . . . . . . . . . . . . . . . . . . . 1 . . Prioritize 2 | . . . . . . . . . . . . . . . . . . . 2 . . Liberate 2 | . . . . . . . . . . . . . . . . . . . 2 . . Fabnet 3 | . . . . . . . . . . . . . . 1 . . . . 2 . . Haulers 1 | . . . . . . . . . . . . . . . . . . . 1 . . Download 1 | . . . . . . . . . . . . . . . . . . . 1 . . Repair Stations . | . . . . . . . . . . . . . . . . . . . . . . Recycling Units . | . . . . . . . . . . . . . . . . . . . . . . Scanalyzers 1 | . . . 1 . . . . . . . . . . . . . . . . . . Extract 1 | . . . 1 . . . . . . . . . . . . . . . . . . Garrison Access 1 | . . . . . . . . . . . . . . . . . . . 1 . . Reprogram 1 | . . . . . . . . . . . . . . . . . . . 1 . . Data Cores Recovered 2 | . . . . . . . . . . . . . . 1 . . . . 1 . . Used 1 | . . . . . . . . . . . . . . 1 . . . . . . . Hacking Detections 33 | . 3 . 3 . . . 2 1 . 4 3 1 . 6 . 1 . 3 4 1 1 Full Trace Events 15 | . . . 3 . . . . . . 4 2 . . 1 . 1 . 2 2 . . Feedback Events 1 | . . . . . . . . . . . . . . . . 1 . . . . . Corruption 1 | . . . . . . . . . . . . . . . . 1 . . . . . Feedback Blocked . | . . . . . . . . . . . . . . . . . . . . . . Robot Schematics Acquired . | . . . . . . . . . . . . . . . . . . . . . . Robots Built 2 | . . . . . . . . . . . . . . . . . . . 2 . . Authchips . | . . . . . . . . . . . . . . . . . . . . . . Time 187 | . . . . . . . . . . . . . . . . . . . 187 . . Total Robot Build Rating 14 | . . . . . . . . . . . . . . . . . . . 14 . . Part Schematics Acquired 4 | . . . 3 . . . . . . . . . . . . . . . 1 . . Parts Built 2 | . . . . . . . . . . . . . . . . . . . 2 . . Authchips . | . . . . . . . . . . . . . . . . . . . . . . Time 117 | . . . . . . . . . . . . . . . . 53 . . 64 . . Total Part Build Rating 16 | . . . . . . . . . . . . . . . . . . . 16 . . Parts Repaired 2 | . . . . . . . . . . . . . . 1 . . . 1 . . . Time 69 | . . . . . . . . . . . . . . 49 . . . 20 . . . Parts Recycled . | . . . . . . . . . . . . . . . . . . . . . . Recycled Matter . | . . . . . . . . . . . . . . . . . . . . . . Retrieved Matter . | . . . . . . . . . . . . . . . . . . . . . . Retrieved Components . | . . . . . . . . . . . . . . . . . . . . . . Parts Scanalyzed 2 | . . . 2 . . . . . . . . . . . . . . . . . . Part Schematics Acquired 2 | . . . 2 . . . . . . . . . . . . . . . . . . Parts Damaged 1 | . . . 1 . . . . . . . . . . . . . . . . . . Bothacking | -11 -10 -10 -9 -9 -9 -8 -8 -8 -8 -8 -7 -6 -6 -6 -6 -5 -5 -5 -4 -4 -4 ------------ Run | Yrd Mat Min Mat Min Exi Min Mat Gar Mat Gar Fac Fac Was Fac Gar Fac Was Fac Fac Gar Ext Used RIF Installer 5 | . . . . . . . . 2 . 1 . . . . 1 . . . . 1 . Hotswap 1 | . . . . . . . . . . . . . . . . . . . . 1 . Watcher Feeds 1 | . . . . . . . . . . 1 . . . . . . . . . . . Program Shield 1 | . . . . . . . . 1 . . . . . . . . . . . . . Autoassimilate 1 | . . . . . . . . . . . . . . . 1 . . . . . . Robots Hacked 61 | . . . . . . . . . . 10 5 3 . . 4 3 . 11 11 5 9 Non-combat 13 | . . . . . . . . . . . 5 3 . . . 1 . 1 2 . 1 Combat 48 | . . . . . . . . . . 10 . . . . 4 2 . 10 9 5 8 Autoassimilated 7 | . . . . . . . . . . . . . . . . . . 2 2 3 . Robot Hacks Applied 68 | . . . . . . . . . . 10 12 7 . . 4 3 . 11 9 2 10 parse_system 4 | . . . . . . . . . . . 1 1 . . . . . 1 1 . . no_distress 1 | . . . . . . . . . . . . . . . . . . . . . 1 generate_anomaly 1 | . . . . . . . . . . . 1 . . . . . . . . . . generate_echo 1 | . . . . . . . . . . . 1 . . . . . . . . . . ignore_repairs 1 | . . . . . . . . . . . . . . . . . . . 1 . . map_walls 3 | . . . . . . . . . . . 1 1 . . . . . . . . 1 randomize_corridors 1 | . . . . . . . . . . . . 1 . . . . . . . . . map_earth 2 | . . . . . . . . . . . . 2 . . . . . . . . . find_fabricator 1 | . . . . . . . . . . . 1 . . . . . . . . . . drop_inventory 2 | . . . . . . . . . . . 1 1 . . . . . . . . . locate_stockpiles 1 | . . . . . . . . . . . . 1 . . . . . . . . . ignore_parts 2 | . . . . . . . . . . . 1 . . . . 1 . . . . . purge_threat 2 | . . . . . . . . . . . 2 . . . . . . . . . . summon_haulers 1 | . . . . . . . . . . . 1 . . . . . . . . . . clear_repairs 1 | . . . . . . . . . . . 1 . . . . . . . . . . mark_security 1 | . . . . . . . . . . . 1 . . . . . . . . . . find_shortcuts 2 | . . . . . . . . . . . . . . . 1 . . 1 . . . tweak_propulsion 1 | . . . . . . . . . . . . . . . . . . 1 . . . mark_system 2 | . . . . . . . . . . . . . . . . . . 2 . . . disrupt_area 1 | . . . . . . . . . . . . . . . . . . 1 . . . amplify_resonance 14 | . . . . . . . . . . 3 . . . . 3 1 . 3 3 . 1 reboot_system 7 | . . . . . . . . . . . . . . . . 1 . 1 3 . 2 overwrite_iff 3 | . . . . . . . . . . . . . . . . . . . 1 1 1 streamctrl_high 1 | . . . . . . . . . . 1 . . . . . . . . . . . formatsys_high 12 | . . . . . . . . . . 6 . . . . . . . 1 . 1 4 Relay Couplers Released 17 | . . . . . . . . 2 . 6 . . . . 2 . . . . 7 . Machine Destruction 17 | . . . . . . . . 2 . 6 . . . . 2 . . . . 7 . Attached 14 | . . . . . . . . 2 . 3 . 1 . . 1 . . . . 7 . Fabnet Peak Effective % 3 | . . . . . . . . . . . . . . . . 3 3 3 1 1 1 Autooverrided 2 | . . . . . . . . . . . . . . . . 1 . . 1 . . Robots Rewired 26 | . . . . . . . . . . 5 . 2 . . 6 2 . . . . 11 Allies Hacked 2 | . . . . . . . . . . . . . . . . . . . 2 . . Hacks Repelled . | . . . . . . . . . . . . . . . . . . . . . . Allies | -11 -10 -10 -9 -9 -9 -8 -8 -8 -8 -8 -7 -6 -6 -6 -6 -5 -5 -5 -4 -4 -4 -------- Run | Yrd Mat Min Mat Min Exi Min Mat Gar Mat Gar Fac Fac Was Fac Gar Fac Was Fac Fac Gar Ext Total Allies 101 | . . 1 . . . . . . . 13 . 2 18 . 6 3 19 3 12 7 17 Largest Group 21 | . . 1 1 . . . . . . 7 7 4 18 5 4 4 21 21 18 2 7 Highest-Rated Group 798 | . . 31 31 . . . . . . 277 277 136 638 234 274 303 754 798 691 124 305 Highest-Rated Ally 148 | . . 31 31 . . . . . . 85 85 41 50 50 148 148 50 50 56 62 51 Total Orders 2 | . . . . . . . . . . . . . . . . 1 . . . 1 . ROAM 2 | . . . . . . . . . . . . . . . . 1 . . . 1 . Ally Attacks 757 | . . . 18 . . . . . . 43 39 15 150 40 44 7 109 36 189 18 49 Total Damage 23806 | . . . 299 . . . . . . 804 794 328 7637 1316 1460 97 3523 475 4872 776 1425 Kills 105 | . . . 7 . . . . . . 10 8 4 13 12 4 . 7 9 22 1 8 Allies Corrupted 1 | . . . . . . . . . . . . . . . . . . . . 1 . Allies Melted . | . . . . . . . . . . . . . . . . . . . . . . Field Lobotomies 5 | . . . . . . . . . . 1 . . . . . . . . 4 . . Intel | -11 -10 -10 -9 -9 -9 -8 -8 -8 -8 -8 -7 -6 -6 -6 -6 -5 -5 -5 -4 -4 -4 ------- Run | Yrd Mat Min Mat Min Exi Min Mat Gar Mat Gar Fac Fac Was Fac Gar Fac Was Fac Fac Gar Ext Robot Analysis Total . | . . . . . . . . . . . . . . . . . . . . . . Derelict Logs Recovered 2 | . . 1 . 1 . . . . . . . . . . . . . . . . . Drone Launches . | . . . . . . . . . . . . . . . . . . . . . . Drone Recoveries . | . . . . . . . . . . . . . . . . . . . . . . Exploration | -11 -10 -10 -9 -9 -9 -8 -8 -8 -8 -8 -7 -6 -6 -6 -6 -5 -5 -5 -4 -4 -4 ------------- Run | Yrd Mat Min Mat Min Exi Min Mat Gar Mat Gar Fac Fac Was Fac Gar Fac Was Fac Fac Gar Ext Turns Passed 6973 | 22 236 282 430 296 84 80 321 182 6 510 187 480 198 468 502 96 117 298 452 868 858 Spaces Moved 8005 | 12 169 330 552 651 222 87 230 353 18 518 248 756 291 634 507 118 94 413 516 886 400 Core 3 | . . . . . . . . . . . 1 1 . . 1 . . . . . . Treads 500 | . . . . . . . . . . . . . . . . . . . . 100 400 Legs 48 | 9 39 . . . . . . . . . . . . . . . . . . . . Wheels 3 | 3 . . . . . . . . . . . . . . . . . . . . . Hover . | . . . . . . . . . . . . . . . . . . . . . . Flight 7451 | . 130 330 552 651 222 87 230 353 18 518 247 755 291 634 506 118 94 413 516 786 . Fastest Speed 29 | 80 37 37 37 34 34 34 32 29 29 29 37 37 37 37 37 37 37 37 37 37 160 Average Speed 46 | 110 56 37 37 34 34 34 82 29 29 34 37 37 37 37 37 37 37 37 37 55 160 Slowest Speed 240 | 120 120 117 37 37 34 34 117 32 29 117 150 150 37 37 100 37 37 37 37 240 160 Overloaded Moves . | . . . . . . . . . . . . . . . . . . . . . . Propulsion Burnouts . | . . . . . . . . . . . . . . . . . . . . . . Robots Hopped 89 | . 2 3 13 6 . 4 1 . . 13 3 4 1 11 11 1 . 2 6 6 2 Cave-ins Triggered . | . . . . . . . . . . . . . . . . . . . . . . Time Travels 1 | . . . . . . . . . . . . . . . . . . . 1 . . Exploration Rate (%) 42 | 2 27 74 48 98 63 20 30 45 4 59 13 20 91 25 62 4 69 15 23 81 52 Regions Visited 21 Branch Regions 5 Pre-discovered Areas 1 | . . . . . 1 . . . . . . . . . . . . . . . . Known Exits Taken 12 | . 1 1 1 1 1 1 1 . 1 . 1 . . 1 . . . 1 1 . . Unknown Exits Taken 1 | 1 . . . . . . . . . . . . . . . . . . . . . Scrap Searched 2 | . . 1 . 1 . . . . . . . . . . . . . . . . . Spaces Dug 21 | . . . . . . . . . . 20 . 1 . . . . . . . . . Terrain Destroyed 1014 | . 28 . 37 13 . . 114 74 . 158 . 1 . 121 87 5 3 6 136 136 95 Melee . | . . . . . . . . . . . . . . . . . . . . . . Projectile 74 | . . . . . . . 1 . . . . 1 . 4 6 5 3 6 19 13 16 AOE 940 | . 28 . 37 13 . . 113 74 . 158 . . . 117 81 . . . 117 123 79 Terrain Rammed . | . . . . . . . . . . . . . . . . . . . . . . Walls Destroyed . | . . . . . . . . . . . . . . . . . . . . . . Machines Disabled . | . . . . . . . . . . . . . . . . . . . . . . Actions | -11 -10 -10 -9 -9 -9 -8 -8 -8 -8 -8 -7 -6 -6 -6 -6 -5 -5 -5 -4 -4 -4 --------- Run | Yrd Mat Min Mat Min Exi Min Mat Gar Mat Gar Fac Fac Was Fac Gar Fac Was Fac Fac Gar Ext Total 10064 | 20 235 419 661 683 232 113 307 405 18 721 315 855 352 820 732 148 168 535 641 1140 544 Wait 713 | . 3 24 11 2 . 14 5 9 . 78 32 . 33 149 95 10 49 96 8 79 16 Move 7824 | 11 164 323 525 638 221 79 228 351 18 498 241 748 288 613 488 116 93 408 503 874 396 Hop 73 | . 2 3 13 6 . 3 1 . . 6 3 4 1 10 6 1 . 2 6 4 2 Pick Up 48 | . 2 1 3 3 2 . 3 3 . 2 . 2 2 1 3 . . 2 1 14 4 Fast Attach 81 | 5 6 4 4 2 1 1 13 3 . 3 1 6 8 7 4 . 1 2 1 5 4 Attach 31 | . 1 . 3 1 1 . 2 3 . 2 . 3 . . 1 . . . 3 6 5 Detach 36 | 2 . 3 2 . 2 . 3 3 . 5 . 3 1 2 1 . . 1 1 6 1 Swap 66 | . 2 1 10 5 . . 3 3 . 10 . 1 1 3 2 1 . 1 10 12 1 Drop 107 | 2 5 4 11 5 5 . 13 5 . 7 1 4 5 6 6 . . 2 4 15 7 Fire 635 | . 35 34 48 14 . 11 22 17 . 74 24 54 12 16 43 14 3 21 71 56 66 Melee . | . . . . . . . . . . . . . . . . . . . . . . Ram 1 | . . . . . . . 1 . . . . . . . . . . . . . . Kick . | . . . . . . . . . . . . . . . . . . . . . . Crush 2 | . . . . . . . . . . . . . . . . . . . . . 2 Escape Stasis 42 | . . . . . . . . . . 18 . 11 . . . . . . . 13 . Rewire 35 | . . . . . . . . . . . . . . . 31 . . . . . 4 Trap 5 | . . . . . . . . . . . . . . . . . . . . 5 . Miscellaneous 365 | . 15 22 31 7 . 5 13 8 . 18 13 19 1 13 52 6 22 . 33 51 36 Route ------- -11/Scrapyard -10/Materials (discovered 2 exits: *Mat / *Min) -10/Mines -9/Materials (discovered 2 exits: *Mat / *Min) -9/Mines (discovered 3 exits: *Mat x2 / *Exi) -9/Exiles (discovered 2 exits: *Min x2) -8/Mines -8/Materials (discovered 5 exits: *Fac x2 / *Sto x2 / Gar) -8/Garrison (discovered 4 exits: *Mat x4) -8/Materials -8/Garrison (discovered 3 exits: *Fac x3) -7/Factory -6/Factory -6/Waste -6/Factory (discovered 5 exits: Fac x4 / Gar) -6/Garrison (discovered 2 exits: *Fac x2) -5/Factory -5/Waste -5/Factory -4/Factory (discovered 5 exits: Upp x2 / Ext x2 / Gar) -4/Garrison (discovered 3 exits: *Ext x3) -4/Extension History --------- Turn | Location | Event 1 | -11/Scrapyard | Upgraded with Propulsion slot (x1) 1 | -11/Scrapyard | Upgraded with Utility slot (x2) 1 | -11/Scrapyard | Upgraded with Weapon slot (x1) 3 | -11/Scrapyard | Discovered new exit (range 1) 23 | -11/Scrapyard | Entered Materials 142 | -10/Materials | Discovered new exit (range 6) 147 | -10/Materials | Central database locked down 197 | -10/Materials | Reached level 2 200 | -10/Materials | Upgraded with Utility slot (x1) 211 | -10/Materials | Identified exit to Materials 224 | -10/Materials | Destroyed 7 combat bots 246 | -10/Materials | Discovered new exit (range 10) 258 | -10/Materials | Identified exit to Mines 259 | -10/Materials | Entered Mines 381 | -10/Mines | Reached level 3 393 | -10/Mines | Joined a pair of Derelicts in attacking an 0b10 outpost 445 | -10/Mines | Met a Derelict shopkeep closing up shop 461 | -10/Mines | Received a Mining Laser from a helpful Derelict 517 | -10/Mines | Discovered exit to Materials (range 7) 541 | -10/Mines | Entered Materials 541 | -9/Materials | Accompanied by 1 ally 542 | -9/Materials | Identified exit to Mines 543 | -9/Materials | Build established: Scavenger-Mutant 543 | -9/Materials | Reached level 4 675 | -9/Materials | Reached level 5 677 | -9/Materials | Upgraded with Weapon slot (x1) 736 | -9/Materials | Discovered new exit (range 8) 756 | -9/Materials | Reached level 6 763 | -9/Materials | Upgraded with Weapon slot (x1) 830 | -9/Materials | Reached level 7 842 | -9/Materials | Upgraded with Propulsion slot (x1) 846 | -9/Materials | Build established: Hacker-Scout 851 | -9/Materials | Destroyed 7 combat bots 971 | -9/Materials | Entered Mines 992 | -9/Mines | Reached level 8 996 | -9/Mines | Upgraded with Utility slot (x1) 1021 | -9/Mines | Received a Rocket Launcher from a helpful Derelict 1057 | -9/Mines | Discovered new exit (range 5) 1061 | -9/Mines | Met a Derelict who couldn't figure out how to use a Trap Extractor 1081 | -9/Mines | Identified exit to Materials 1102 | -9/Mines | Discovered exit to Materials (range 9) 1170 | -9/Mines | Learned 8 Materials zone layouts 1265 | -9/Mines | Deemed a non-threat by the Exiles lab entrance 1266 | -9/Mines | Discovered new exit (range 5) 1267 | -9/Mines | Identified exit to Exiles 1267 | -9/Mines | Entered Exiles 1268 | -9/Exiles | Identified exit to Mines 1276 | -9/Exiles | Met 8R-AWN 1282 | -9/Exiles | Met EX-HEX 1291 | -9/Exiles | Met EX-BIN 1295 | -9/Exiles | Aligned with FarCom system 1295 | -9/Exiles | Given EX-Vault access code 1303 | -9/Exiles | Opened EX-Vault 1306 | -9/Exiles | Found Field Lobotomy Kit 1308 | -9/Exiles | Found Cloak of Protection 1314 | -9/Exiles | Found Chronowheel 1322 | -9/Exiles | Warned to stay clear of 0b10 Research branches 1334 | -9/Exiles | Met EX-DEC 1337 | -9/Exiles | Learned location of Zion (-7) 1348 | -9/Exiles | Discovered exit to Mines (range 10) 1351 | -9/Exiles | Stole three prototypes: Cloak of Protection, Chronowheel, Field Lobotomy Kit 1351 | -9/Exiles | Entered Mines 1353 | -8/Mines | Reached level 9 1406 | -8/Mines | Destroyed 7 combat bots 1416 | -8/Mines | Discovered exit to Materials (range 14) 1431 | -8/Mines | Entered Materials 1432 | -8/Materials | Identified exit to Factory 1432 | -8/Materials | Identified exit to Storage 1433 | -8/Materials | Reached level 10 1672 | -8/Materials | Reached level 11 1675 | -8/Materials | Upgraded with Propulsion slot (x1) 1752 | -8/Materials | Identified exit to Garrison 1752 | -8/Materials | Entered Garrison 1758 | -8/Garrison | Discovered new exit (range 69) 1758 | -8/Garrison | Discovered new exit (range 43) 1758 | -8/Garrison | Discovered new exit (range 54) 1758 | -8/Garrison | Discovered new exit (range 64) 1787 | -8/Garrison | Triggered checkpoint 1793 | -8/Garrison | Reached level 12 1825 | -8/Garrison | Destroyed 9 combat bots 1832 | -8/Garrison | Installed Relay Interface Framework 1853 | -8/Garrison | Garrison Relay disabled 1929 | -8/Garrison | Expanded RIF knowledge: Program Shield 1934 | -8/Garrison | Identified exit to Materials 1934 | -8/Garrison | Entered Materials 1940 | -8/Materials | Identified exit to Garrison 1940 | -8/Materials | Entered Garrison 1952 | -8/Garrison | Triggered checkpoint 1954 | -8/Garrison | Discovered exit to Factory (range 42) 1954 | -8/Garrison | Discovered exit to Factory (range 66) 1954 | -8/Garrison | Discovered exit to Factory (range 76) 2006 | -8/Garrison | Garrison Relay disabled 2018 | -8/Garrison | Expanded RIF knowledge: Watcher Feeds 2043 | -8/Garrison | Triggered checkpoint 2043 | -8/Garrison | Triggered checkpoint 2114 | -8/Garrison | Spotted B-75 Beast 2119 | -8/Garrison | Assimilated B-75 Beast with FLK Orb 2136 | -8/Garrison | Reached level 13 2177 | -8/Garrison | Garrison Relay disabled 2248 | -8/Garrison | Triggered checkpoint 2276 | -8/Garrison | Garrison Relay disabled 2286 | -8/Garrison | Phase Generator disabled 2386 | -8/Garrison | Garrison Relay disabled 2395 | -8/Garrison | Lost 4 allies 2450 | -8/Garrison | Entered Factory 2450 | -7/Factory | Accompanied by 7 allies 2452 | -7/Factory | FarCom data flow suspended 2452 | -7/Factory | Reached level 14 2540 | -7/Factory | Reached level 15 2600 | -7/Factory | Discovered new exit (range 15) 2604 | -7/Factory | Identified exit to Factory 2637 | -7/Factory | Entered another Factory area 2637 | -6/Factory | Accompanied by 4 allies 2639 | -6/Factory | Reached level 16 2723 | -6/Factory | Lost 3 allies 2785 | -6/Factory | Build established: Bothacker-Scout 3020 | -6/Factory | Reached level 17 3021 | -6/Factory | Upgraded with Utility slot (x1) 3117 | -6/Factory | Sucked down chute 3117 | -6/Factory | Entered Waste 3120 | -6/Waste | Spotted C-40 Crusher 3120 | -6/Waste | Spotted C-40 Crusher 3127 | -6/Waste | Crushed by Compactor (0 parts destroyed, 1 dropped) 3130 | -6/Waste | Spotted C-40 Crusher 3148 | -6/Waste | Spotted C-40 Crusher 3148 | -6/Waste | Spotted C-40 Crusher 3167 | -6/Waste | Spotted C-40 Crusher 3179 | -6/Waste | Warlord forces began an assault 3180 | -6/Waste | Allies destroyed C-40 Crusher 3208 | -6/Waste | Core integrity fell below 50% 3208 | -6/Waste | Allies destroyed C-40 Crusher 3211 | -6/Waste | Destroyed C-40 Crusher 3219 | -6/Waste | Crushed by Compactor (1 part destroyed, 2 dropped) 3222 | -6/Waste | Allies destroyed C-40 Crusher 3222 | -6/Waste | Crushed by Compactor (1 part destroyed, 1 dropped) 3228 | -6/Waste | Crushed by Compactor (1 part destroyed, 2 dropped) 3229 | -6/Waste | Allies destroyed C-40 Crusher 3233 | -6/Waste | Core integrity fell below 20% 3249 | -6/Waste | Allies destroyed C-40 Crusher 3250 | -6/Waste | Build established: Hacker-Scout 3259 | -6/Waste | Lost 3 parts (1p1u1w) 3269 | -6/Waste | Discovered new exit (range 11) 3273 | -6/Waste | Lost 12 allies 3277 | -6/Waste | Identified exit to Factory 3315 | -6/Waste | Entered Factory 3315 | -6/Factory | Accompanied by 5 allies 3330 | -6/Factory | Identified exit to Factory 3425 | -6/Factory | Reached level 18 3567 | -6/Factory | Repaired Lgt. Antimatter Cannon 3693 | -6/Factory | Identified exit to Garrison 3783 | -6/Factory | Entered Garrison 3783 | -6/Garrison | Accompanied by 2 allies 3812 | -6/Garrison | Triggered checkpoint 3892 | -6/Garrison | Triggered checkpoint 3892 | -6/Garrison | Reached level 19 3912 | -6/Garrison | Triggered checkpoint 3918 | -6/Garrison | Triggered checkpoint 3918 | -6/Garrison | Triggered checkpoint 3918 | -6/Garrison | Triggered checkpoint 3936 | -6/Garrison | Discovered exit to Factory (range 13) 4027 | -6/Garrison | Spotted B-86 Titan 4043 | -6/Garrison | Spotted B-90 Cyclops 4049 | -6/Garrison | Rewired B-90 Cyclops 4053 | -6/Garrison | Rewired B-75 Beast 4064 | -6/Garrison | Destroyed B-90 Cyclops 4083 | -6/Garrison | Destroyed B-86 Titan 4118 | -6/Garrison | Discovered exit to Factory (range 13) 4124 | -6/Garrison | Triggered checkpoint 4145 | -6/Garrison | Garrison Relay disabled 4163 | -6/Garrison | Expanded RIF knowledge: Autoassimilate 4285 | -6/Garrison | Entered Factory 4285 | -5/Factory | Accompanied by 2 allies 4287 | -5/Factory | Reached level 20 4320 | -5/Factory | Spotted B-75 Beast 4337 | -5/Factory | Destroyed B-75 Beast 4351 | -5/Factory | Reached level 21 4363 | -5/Factory | Local machine network offline 4381 | -5/Factory | Sucked down chute 4381 | -5/Factory | Entered Waste 4388 | -5/Waste | Spotted C-40 Crusher 4389 | -5/Waste | Spotted C-40 Crusher 4393 | -5/Waste | Warlord forces began an assault 4396 | -5/Waste | Destroyed C-40 Crusher 4400 | -5/Waste | 2 allies followed down the chute 4404 | -5/Waste | Allies destroyed C-40 Crusher 4412 | -5/Waste | Spotted C-40 Crusher 4412 | -5/Waste | Spotted C-40 Crusher 4421 | -5/Waste | Allies destroyed C-40 Crusher 4422 | -5/Waste | Spotted C-40 Crusher 4425 | -5/Waste | Allies destroyed C-40 Crusher 4428 | -5/Waste | Allies destroyed C-40 Crusher 4440 | -5/Waste | Discovered new exit (range 20) 4440 | -5/Waste | Spotted C-40 Crusher 4447 | -5/Waste | Allies destroyed C-40 Crusher 4451 | -5/Waste | Identified exit to Factory 4498 | -5/Waste | Entered Factory 4498 | -5/Factory | Accompanied by 19 allies 4683 | -5/Factory | Repaired Micro-nuke Launcher 4704 | -5/Factory | Reached level 22 4719 | -5/Factory | Discovered new exit (range 12) 4727 | -5/Factory | Identified exit to Factory 4796 | -5/Factory | Entered another Factory area 4796 | -4/Factory | Accompanied by 18 allies 4798 | -4/Factory | Reached level 23 4850 | -4/Factory | Reached level 24 4866 | -4/Factory | Lost 3 allies 4893 | -4/Factory | Identified exit to Upper Caves 4893 | -4/Factory | Identified exit to Extension 5009 | -4/Factory | Reached level 25 5046 | -4/Factory | First assault squad dispatched 5110 | -4/Factory | Build established: Wizard-Scout 5153 | -4/Factory | Garrison activated, responded to threat 5159 | -4/Factory | Spotted B-86 Titan 5175 | -4/Factory | Fabricated Hyp. Railgun (x2) 5180 | -4/Factory | Allies destroyed B-86 Titan 5191 | -4/Factory | Core integrity fell below 50% 5202 | -4/Factory | High security lockdown imminent 5215 | -4/Factory | Assimilated P-70 Sage with FLK Orb 5217 | -4/Factory | Core integrity fell below 20% 5218 | -4/Factory | Assimilated H-77 Assassin with FLK Orb 5220 | -4/Factory | Fabricated W-44 Eye (x2) 5221 | -4/Factory | Assimilated L-61 Swordsman with FLK Orb 5224 | -4/Factory | Assimilated P-70 Sage with FLK Orb 5226 | -4/Factory | Sage 7b assimilated hostile B-60 Warrior 5232 | -4/Factory | Activated Chronowheel 5232 | -4/Factory | Spacetime reconverged on an earlier point 5245 | -4/Factory | Identified exit to Garrison 5248 | -4/Factory | Entered Garrison 5248 | -4/Garrison | Accompanied by 2 allies 5248 | -4/Garrison | Reached level 26 5256 | -4/Garrison | Triggered checkpoint 5259 | -4/Garrison | Lost 14 allies 5283 | -4/Garrison | Triggered checkpoint 5292 | -4/Garrison | Garrison Relay disabled 5349 | -4/Garrison | Phase Generator disabled 5400 | -4/Garrison | Spotted B-86 Titan 5436 | -4/Garrison | Triggered checkpoint 5454 | -4/Garrison | Discovered exit to Extension (range 12) 5454 | -4/Garrison | Discovered exit to Extension (range 84) 5454 | -4/Garrison | Discovered exit to Extension (range 60) 5454 | -4/Garrison | Learned Extension security intel 5526 | -4/Garrison | Lost 4 allies 5576 | -4/Garrison | Destroyed B-86 Titan 5617 | -4/Garrison | Triggered checkpoint 5729 | -4/Garrison | Garrison Relay disabled 5739 | -4/Garrison | Found embedded Infiltrators 5768 | -4/Garrison | Expanded RIF knowledge: Hotswap 5790 | -4/Garrison | Found Relay Coupler [Proto] 5793 | -4/Garrison | Found Relay Coupler [Proto] 5799 | -4/Garrison | Found Relay Coupler [Proto] 5801 | -4/Garrison | Found Relay Coupler [Proto] 5819 | -4/Garrison | Garrison Relay disabled 5830 | -4/Garrison | Triggered checkpoint 5842 | -4/Garrison | Triggered checkpoint 5890 | -4/Garrison | Triggered checkpoint 6010 | -4/Garrison | Garrison Relay disabled 6010 | -4/Garrison | Reached level 27 6116 | -4/Garrison | Entered Extension 6131 | -4/Extension | Disrupted transfer network 6133 | -4/Extension | Build established: Botlord-Gunner 6205 | -4/Extension | Rescued a captive Derelict 6205 | -4/Extension | Rescued a captive Derelict 6366 | -4/Extension | First assault squad dispatched 6406 | -4/Extension | Lost 4 allies 6557 | -4/Extension | Lost 7 allies 6657 | -4/Extension | Spotted B-86 Titan 6974 | -4/Extension | Destroyed by Y-64 Sentinel with KE Penetrator Last Messages --------------- 06819_ >> Watcher Feeds: Feed link from W-44 Eye lost. 06831_ System corrupted: Matter fused (-7). 06832_ Acquired 7 matter. 06852_ System corrupted: Matter fused (-7). 06868_ System corrupted: FCS attempts to trigger Hvy. Mass Driver. 06868_ System corrupted: Hvy. Mass Driver misfires. 06868_ Slug penetrates Wall. 06894_ System corrupted: Energy discharge (-96). 06909_ System corrupted: Heat flow error (+159). 06912_ Dropped Hvy. Mass Driver. 06915_ Acquired Hvy. Mass Driver. 06949_ System corrupted: Matter fused (-7). 06963_ Penetrated by Slug. 06965_ Jacked Y-64 Sentinel... >>overwrite_iff Rewriting IFF filter. 06965_ Slug penetrates Y-64 Sentinel. 06973_ Y-64 Sentinel Imp. Treads blasted off. 06974_ Y-64 Sentinel destroyed. 06974_ Penetrated by Slug. Map ----- +----------------------------------------------------+ | | | | | | | | | | | | | | | ????????????????????????????????????????????? | | ????????????????????????????????????????????? | | ????????????????????????????????????????##### | | ????????????????????????????????????????# ! | | ??????????##############????????????????# | | ??????????# ^ #?#######????????# ] | | ??????????# ^ #?# ###??????# | | ??????????# ### # ###????# | | ??????????# ^^ #????####+ | | ??????????# ############ # #??????# | | ??????????# #??????????# #T###??????# | | ??????????# #??????????#### ####????????# | | ?????###### #?????????????# #???????????# | | ?????# #????????###### #??????????## | | ?????# ####???? ## #??????????# | | ?????# ^^ #???? !Y[ ## ############ | | ?????# #??? *[%%## T | | ?????# ^ ####! !hh ############### | | ?????# ^ @*! lg=#?????????????# | | ?????# ########## [ / #?????????????#### | | ?????# #####?????????#######????????????????? | | ?????# #????????????????????????????????????? | | ?????# #????????????????????????????????????? | | ?????# #????????????????????????????????????? | | ?????# #????????????????????????????????????? | | ?????# #????????????????????????????????????? | | ?????# #????????????????????????????????????? | | ?????# #????????????????????????????????????? | | ?????# #????????????????????????????????????? | | ?????# #????????????????????????????????????? | | ?????# #????????????????????????????????????? | | ?????# #????????????????????????????????????? | | ?????# #????????????????????????????????????? | | ?????# #????????????????????????????????????? | | ?##### #####????????????????????????????????? | | ?# "" "" #????????????????????????????????? | | ?# " " ###########??????????????????????? | | ?# ????????????????????? | | ?# ????????????????????? | | ?# ????????????????????? | | ?# ????????????????????? | | ?# ????????????????????? | | ?# ############?????????????????????? | +----------------------------------------------------+ Best States ------------- Heat Dissipation 80 Energy Generation 38 Energy Capacity 360 Matter Stores 350 Matter Capacity 350 Sight Range 21 Robot Scan Range 26 Terrain Scan Range 16 Terrain Scan Density 410 Cloak Strength 5 Armor Coverage 225 Resistance: KI 10 Resistance: TH 10 Resistance: EX 5 Evasion (%) 64 Recoil Reduction 4 Salvage Targeting 2 Offensive Hacking 47 Defensive Hacking 20 Relay Coupler Types 4 Relay Coupler Value 192 Item Schematics ----------------- Field Laser | -9/Materials | Scanalyzed Rocket Launcher | -9/Materials | Scanalyzed Imp. Targeting Computer | -9/Materials | Extracted Hyp. Railgun | -4/Factory | Downloaded Robot Schematics ------------------ None Fabricated ------------ Hyp. Railgun | x2 | -4/Factory W-44 Eye | x2 | -4/Factory | Preloaded Alien Tech Used ----------------- None Achievements -------------- None Challenges ------------ None RPGLIKE | -11 -10 -10 -9 -9 -9 -8 -8 -8 -8 -8 -7 -6 -6 -6 -6 -5 -5 -5 -4 -4 -4 --------- Run | Yrd Mat Min Mat Min Exi Min Mat Gar Mat Gar Fac Fac Was Fac Gar Fac Was Fac Fac Gar Ext Levels Raised 26 | . 1 1 4 1 . 1 2 1 . 1 2 2 . 1 1 2 . 1 3 2 . XP Earned 42651 | 3000 1745 1564 6322 1601 243 1500 2752 1458 . 1926 2358 2722 189 2142 1498 2294 127 1135 5908 1554 613 XP Spent 42000 | 3000 1460 1450 6075 1510 . 1500 2890 1605 . 1450 3025 2975 . 1500 1560 2550 . 1880 4515 3055 . Upgrades 100 | 9 6 3 18 2 . 3 8 4 . 2 5 4 . 5 4 6 . 2 7 12 . Propulsion Slot 3 | 1 . . 1 . . . 1 . . . . . . . . . . . . . . Utility Slot 5 | 2 1 . . 1 . . . . . . . 1 . . . . . . . . . Weapon Slot 3 | 1 . . 2 . . . . . . . . . . . . . . . . . . Core Integrity 24 | . 2 . . . . . 4 . . . . . . 4 2 . . . 1 11 . Heat Dissipation 6 | 1 . . 2 1 . . . 1 . . 1 . . . . . . . . . . Energy Generation 3 | 1 . . . . . . 2 . . . . . . . . . . . . . . Energy Storage 1 | . . . . . . 1 . . . . . . . . . . . . . . . Matter Storage 1 | . . . . . . 1 . . . . . . . . . . . . . . . Mass Support 3 | . . . 2 . . 1 . . . . . . . . . . . . . . . Inventory Capacity 7 | 1 . 2 . . . . . 1 . 1 1 . . . . . . 1 . . . Sight Range 2 | . . . 1 . . . . . . . . . . . . . . . 1 . . Sensor Range 13 | 1 3 . 2 . . . 1 2 . . 2 2 . . . . . . . . . Terrain Scan Density 4 | 1 . . 1 . . . . . . . . . . . . . . 1 1 . . Ranged Accuracy 4 | . . . 1 . . . . . . . . . . . 1 . . . 2 . . Hack Attack % 7 | . . 1 1 . . . . . . . . 1 . . 1 1 . . 2 . . Hack Defense % 4 | . . . 2 . . . . . . . 1 . . 1 . . . . . . . KI Resistance % 2 | . . . 1 . . . . . . . . . . . . 1 . . . . . TH Resistance % 2 | . . . 1 . . . . . . . . . . . . 1 . . . . . EX Resistance % 1 | . . . . . . . . . . . . . . . . 1 . . . . . KI Damage % 3 | . . . . . . . . . . . . . . . . 2 . . . 1 . TH Damage % 1 | . . . 1 . . . . . . . . . . . . . . . . . . EX Damage % 1 | . . . . . . . . . . 1 . . . . . . . . . . . Protomatter Created 2267 | . 159 123 338 34 . 30 157 85 . 85 . 93 . 64 242 30 86 46 220 359 116 Integrity Restored 7563 | . 290 367 616 75 . 57 253 147 . 392 260 374 15 288 1179 129 502 . 714 1134 771 Core 6666 | . 272 272 520 54 . 49 199 122 . 358 176 303 15 288 1179 129 230 . 595 1134 771 Parts 897 | . 18 95 96 21 . 8 54 25 . 34 84 71 . . . . 272 . 119 . . Protomatter Decayed 1369 | . . 77 167 5 . 4 . 2 . 114 2 144 5 123 55 . 1 244 166 124 136 Game ------ Seed GyrokineticThrusterInsulator Manual? 0 Play Time 01:40:13 Cumulative 643.9 hours Start 2024.02.06 @ 01:20:36 End 2024.02.06 @ 03:01:33 Sessions 1 Manual Loads 0 Difficulty Rogue Special Mode Winter2019/RPGLIKE Game No. 623 Rogue 350 Adventurer 123 Explorer 150 Win Type - Total 25 Types 19/0/4/1/0/0/0/1/0 Lore% 80 Gallery% 91 Achievement% 76 Wizard Run 0 Options --------- ASCII 0 Keyboard 1 Movement Numpad Keybinds 0 Fullscreen 2 Font 18/X11Bold Map View 76x50 Zoom Use 0% Tactical HUD 1 Map Filters NONE Filters NONE Steam 1 RUN: 5bcb74ff-dd2a-4e72-8d9a-a7baa341bd65